[Event "*** Titled Tuesday Blitz"]
[Site "Chess.com"]
[Date "2021.02.02"]
[Round "11"]
[White "Leo_C"]
[Black "Ajedrez_con_German"]
[Result "1/2-1/2"]
[WhiteElo "2405"]
[BlackElo "2592"]
[TimeControl "180+1"]
[EndTime "12:07:47 PST"]
[Termination "Game drawn by stalemate"]

1. d4 {[%clk 0:03:00.9]} 1... d5 {[%clk 0:02:59.6]} 2. c4 {[%clk 0:02:59.7]}
2... c6 {[%clk 0:03:00.1]} 3. cxd5 {[%clk 0:02:59.3]} 3... cxd5 {[%clk 0:03:00]}
4. Bf4 {[%clk 0:02:58.7]} 4... Nf6 {[%clk 0:03:00.2]} 5. e3 {[%clk 0:02:59]}
5... a6 {[%clk 0:03:00.6]} 6. Nc3 {[%clk 0:02:59.2]} 6... Nc6 {[%clk 0:03:01]}
7. Be2 {[%clk 0:02:52.3]} 7... Bf5 {[%clk 0:03:00.9]} 8. Qb3 {[%clk 0:02:49.7]}
8... Na5 {[%clk 0:03:00.1]} 9. Qa4+ {[%clk 0:02:47.4]} 9... Bd7 {[%clk
0:03:00.2]} 10. Qc2 {[%clk 0:02:45]} 10... Rc8 {[%clk 0:03:00.4]} 11. Nf3 {[%clk
0:02:43.2]} 11... e6 {[%clk 0:03:00.8]} 12. h3 {[%clk 0:02:42.1]} 12... Bb4
{[%clk 0:02:53.4]} 13. Nd2 {[%clk 0:02:33.1]} 13... O-O {[%clk 0:02:49.2]} 14.
O-O {[%clk 0:02:32.4]} 14... b5 {[%clk 0:02:44.4]} 15. a3 {[%clk 0:02:28.4]}
15... Be7 {[%clk 0:02:42.8]} 16. b4 {[%clk 0:02:07.9]} 16... Nc4 {[%clk
0:02:39.5]} 17. Nxc4 {[%clk 0:02:07.5]} 17... dxc4 {[%clk 0:02:37.5]} 18. e4
{[%clk 0:02:02.4]} 18... Qb6 {[%clk 0:02:23.1]} 19. Be3 {[%clk 0:01:59.7]} 19...
Qb7 {[%clk 0:02:23]} 20. e5 {[%clk 0:01:52.1]} 20... Nd5 {[%clk 0:02:19.9]} 21.
Nxd5 {[%clk 0:01:50.5]} 21... exd5 {[%clk 0:02:16.6]} 22. f4 {[%clk 0:01:50.1]}
22... f5 {[%clk 0:02:08.6]} 23. g4 {[%clk 0:01:43.4]} 23... a5 {[%clk
0:02:04.5]} 24. bxa5 {[%clk 0:01:41.4]} 24... Ra8 {[%clk 0:02:03.7]} 25. Bd2
{[%clk 0:01:36.1]} 25... Qa7 {[%clk 0:01:53.1]} 26. Bc3 {[%clk 0:01:29.1]} 26...
Bd8 {[%clk 0:01:52.8]} 27. Bf3 {[%clk 0:01:24.4]} 27... Qb7 {[%clk 0:01:33.7]}
28. Qd2 {[%clk 0:01:18.3]} 28... Be6 {[%clk 0:01:29.4]} 29. Rab1 {[%clk
0:01:12.7]} 29... Qa6 {[%clk 0:01:26.8]} 30. Qc2 {[%clk 0:01:05.3]} 30... g6
{[%clk 0:01:22.9]} 31. a4 {[%clk 0:00:59.5]} 31... bxa4 {[%clk 0:01:17.8]} 32.
Qxa4 {[%clk 0:00:57.6]} 32... Bxa5 {[%clk 0:01:18]} 33. Ra1 {[%clk 0:00:51.8]}
33... Bxc3 {[%clk 0:01:16.9]} 34. Qxa6 {[%clk 0:00:50.9]} 34... Bxd4+ {[%clk
0:01:16.7]} 35. Kg2 {[%clk 0:00:49.3]} 35... Rxa6 {[%clk 0:01:16]} 36. Rxa6
{[%clk 0:00:49.5]} 36... Kf7 {[%clk 0:00:44.9]} 37. Rd1 {[%clk 0:00:42.9]} 37...
Be3 {[%clk 0:00:22.3]} 38. Bxd5 {[%clk 0:00:35.6]} 38... Bxd5+ {[%clk
0:00:22.6]} 39. Rxd5 {[%clk 0:00:36.1]} 39... Bxf4 {[%clk 0:00:20.9]} 40. Rd7+
{[%clk 0:00:35.4]} 40... Kg8 {[%clk 0:00:20.9]} 41. e6 {[%clk 0:00:29.1]} 41...
fxg4 {[%clk 0:00:20.2]} 42. hxg4 {[%clk 0:00:28.7]} 42... c3 {[%clk 0:00:19.4]}
43. Raa7 {[%clk 0:00:22.7]} 43... Be5 {[%clk 0:00:19]} 44. e7 {[%clk 0:00:15.3]}
44... Re8 {[%clk 0:00:19.4]} 45. Rd8 {[%clk 0:00:11.4]} 45... Kf7 {[%clk
0:00:18.7]} 46. Rxe8 {[%clk 0:00:11.5]} 46... Kxe8 {[%clk 0:00:19]} 47. Ra8+
{[%clk 0:00:05.7]} 47... Kxe7 {[%clk 0:00:18.9]} 48. Rc8 {[%clk 0:00:06]} 48...
Ke6 {[%clk 0:00:18.2]} 49. Kf3 {[%clk 0:00:04.1]} 49... h5 {[%clk 0:00:17.2]}
50. gxh5 {[%clk 0:00:03.9]} 50... gxh5 {[%clk 0:00:18.1]} 51. Ke4 {[%clk
0:00:02.9]} 51... Bf6 {[%clk 0:00:16]} 52. Rc6+ {[%clk 0:00:02.2]} 52... Kf7
{[%clk 0:00:14.2]} 53. Rxc3 {[%clk 0:00:02]} 53... Bxc3 {[%clk 0:00:13.9]} 54.
Kf3 {[%clk 0:00:02.9]} 54... Kg6 {[%clk 0:00:14]} 55. Kg2 {[%clk 0:00:03.8]}
55... Kg5 {[%clk 0:00:14]} 56. Kh1 {[%clk 0:00:04.7]} 56... Kg4 {[%clk
0:00:14.6]} 57. Kh2 {[%clk 0:00:05]} 57... h4 {[%clk 0:00:15]} 58. Kh1 {[%clk
0:00:05.9]} 58... h3 {[%clk 0:00:15.9]} 59. Kh2 {[%clk 0:00:06.6]} 59... Be5+
{[%clk 0:00:12.1]} 60. Kh1 {[%clk 0:00:07.5]} 60... h2 {[%clk 0:00:12]} 61. Kg2
{[%clk 0:00:07.2]} 61... Kh4 {[%clk 0:00:12.5]} 62. Kh1 {[%clk 0:00:08.1]} 62...
Kh3 {[%clk 0:00:12.8]} 1/2-1/2

[Event "*** Titled Tuesday Blitz"]
[Site "Chess.com"]
[Date "2021.02.02"]
[Round "11"]
[White "Etud-otradnoe"]
[Black "ErikRonka"]
[Result "0-1"]
[WhiteElo "2361"]
[BlackElo "2469"]
[TimeControl "180+1"]
[EndTime "12:07:49 PST"]
[Termination "ErikRonka won on time"]

1. e4 {[%clk 0:03:00.9]} 1... c6 {[%clk 0:02:37.9]} 2. d4 {[%clk 0:02:59.3]}
2... d5 {[%clk 0:02:37.1]} 3. e5 {[%clk 0:02:59.2]} 3... c5 {[%clk 0:02:34.8]}
4. dxc5 {[%clk 0:02:58.7]} 4... e6 {[%clk 0:02:34.4]} 5. Nf3 {[%clk 0:02:39.3]}
5... Nc6 {[%clk 0:02:30.6]} 6. Bd3 {[%clk 0:02:35.3]} 6... Bxc5 {[%clk
0:02:29.7]} 7. a3 {[%clk 0:02:35.2]} 7... Nge7 {[%clk 0:02:28.4]} 8. O-O {[%clk
0:02:28.5]} 8... Ng6 {[%clk 0:02:26.5]} 9. b4 {[%clk 0:02:28.4]} 9... Bb6 {[%clk
0:02:25.6]} 10. Bb2 {[%clk 0:02:27.5]} 10... Nf4 {[%clk 0:02:24.8]} 11. Nbd2
{[%clk 0:02:20.8]} 11... O-O {[%clk 0:02:22.8]} 12. Nb3 {[%clk 0:02:20.4]} 12...
Bd7 {[%clk 0:02:19.1]} 13. Qd2 {[%clk 0:02:18.7]} 13... Nxd3 {[%clk 0:02:18.3]}
14. cxd3 {[%clk 0:02:18.3]} 14... Ne7 {[%clk 0:02:12.5]} 15. Nfd4 {[%clk
0:01:58.4]} 15... Ng6 {[%clk 0:02:08.7]} 16. f4 {[%clk 0:01:56.4]} 16... a5
{[%clk 0:02:08.3]} 17. bxa5 {[%clk 0:01:51.3]} 17... Bxa5 {[%clk 0:02:04.6]} 18.
Nxa5 {[%clk 0:01:50.4]} 18... Qxa5 {[%clk 0:01:51.2]} 19. Qxa5 {[%clk
0:01:48.4]} 19... Rxa5 {[%clk 0:01:52.1]} 20. Bc3 {[%clk 0:01:44.1]} 20... Ra4
{[%clk 0:01:45.1]} 21. Bb4 {[%clk 0:01:42.7]} 21... Rc8 {[%clk 0:01:25.5]} 22.
g3 {[%clk 0:01:42.6]} 22... Nf8 {[%clk 0:00:56.5]} 23. Rfc1 {[%clk 0:01:41]}
23... Raa8 {[%clk 0:00:56.4]} 24. Kf2 {[%clk 0:01:38.2]} 24... Ba4 {[%clk
0:00:55.7]} 25. Ke3 {[%clk 0:01:16.4]} 25... f6 {[%clk 0:00:53.8]} 26. Bxf8
{[%clk 0:01:12.2]} 26... fxe5 {[%clk 0:00:46.6]} 27. fxe5 {[%clk 0:01:10.6]}
27... Rxf8 {[%clk 0:00:40.5]} 28. Nxe6 {[%clk 0:01:10.3]} 28... Rfc8 {[%clk
0:00:24.4]} 29. Rab1 {[%clk 0:00:44.7]} 29... Bc6 {[%clk 0:00:23.1]} 30. Rc3
{[%clk 0:00:35.1]} 30... Ra4 {[%clk 0:00:18.9]} 31. d4 {[%clk 0:00:34]} 31...
Rca8 {[%clk 0:00:18.6]} 32. Rbb3 {[%clk 0:00:33.2]} 32... R4a7 {[%clk 0:00:17]}
33. Nc5 {[%clk 0:00:26.2]} 33... Kf7 {[%clk 0:00:16.9]} 34. Nd3 {[%clk
0:00:24.2]} 34... Ke7 {[%clk 0:00:14.8]} 35. Nb4 {[%clk 0:00:23.5]} 35... Kd7
{[%clk 0:00:14.2]} 36. Nd3 {[%clk 0:00:21.3]} 36... Ke7 {[%clk 0:00:13.1]} 37.
h4 {[%clk 0:00:18.3]} 37... Ba4 {[%clk 0:00:11.5]} 38. Rb6 {[%clk 0:00:16.8]}
38... Bc6 {[%clk 0:00:10.9]} 39. Rbb3 {[%clk 0:00:14.9]} 39... Rf8 {[%clk
0:00:09.9]} 40. Nf4 {[%clk 0:00:13.1]} 40... Rfa8 {[%clk 0:00:08.2]} 41. Kd2
{[%clk 0:00:08.8]} 41... Kd7 {[%clk 0:00:07.1]} 42. Kc2 {[%clk 0:00:08.2]} 42...
Ke7 {[%clk 0:00:07.2]} 43. Kb2 {[%clk 0:00:08.2]} 43... Kd7 {[%clk 0:00:05.8]}
44. Rc5 {[%clk 0:00:08]} 44... Ra5 {[%clk 0:00:04.7]} 45. Rbc3 {[%clk
0:00:07.2]} 45... Rxc5 {[%clk 0:00:03.9]} 46. Rxc5 {[%clk 0:00:07.3]} 46... Ra4
{[%clk 0:00:04]} 47. Nxd5 {[%clk 0:00:04.6]} 47... Rxd4 {[%clk 0:00:03.9]} 48.
Nb6+ {[%clk 0:00:04]} 48... Kc7 {[%clk 0:00:03.1]} 49. Nc4 {[%clk 0:00:03.2]}
49... Rg4 {[%clk 0:00:02.3]} 50. Nd6 {[%clk 0:00:01.9]} 50... Rxg3 {[%clk
0:00:02.3]} 0-1

[Event "*** Titled Tuesday Blitz"]
[Site "Chess.com"]
[Date "2021.02.02"]
[Round "11"]
[White "LyonBeast"]
[Black "Smirnov_Pavel"]
[Result "1-0"]
[WhiteElo "3111"]
[BlackElo "2900"]
[TimeControl "180+1"]
[EndTime "12:07:53 PST"]
[Termination "LyonBeast won by resignation"]

1. c4 {[%clk 0:02:58.5]} 1... e6 {[%clk 0:02:59.3]} 2. Nf3 {[%clk 0:02:57.9]}
2... d5 {[%clk 0:02:59.3]} 3. e3 {[%clk 0:02:52.9]} 3... Nf6 {[%clk 0:02:59.2]}
4. b3 {[%clk 0:02:47.7]} 4... Be7 {[%clk 0:02:54.3]} 5. Bb2 {[%clk 0:02:44.8]}
5... O-O {[%clk 0:02:52.7]} 6. Be2 {[%clk 0:02:45]} 6... c5 {[%clk 0:02:49.9]}
7. cxd5 {[%clk 0:02:41.2]} 7... Nxd5 {[%clk 0:02:49.2]} 8. O-O {[%clk
0:02:40.7]} 8... Nc6 {[%clk 0:02:42.4]} 9. Nc3 {[%clk 0:02:39.2]} 9... Nc7
{[%clk 0:02:34.9]} 10. a3 {[%clk 0:02:35.6]} 10... b6 {[%clk 0:02:34.3]} 11. Qc2
{[%clk 0:02:34.6]} 11... Bb7 {[%clk 0:02:34]} 12. Rfd1 {[%clk 0:02:35.2]} 12...
Bf6 {[%clk 0:02:27.1]} 13. Ne4 {[%clk 0:02:33.8]} 13... Bxb2 {[%clk 0:02:25.9]}
14. Qxb2 {[%clk 0:02:34.7]} 14... Qe7 {[%clk 0:02:22.8]} 15. Rac1 {[%clk
0:02:29.4]} 15... Rfd8 {[%clk 0:02:20.3]} 16. d3 {[%clk 0:02:28.2]} 16... Rac8
{[%clk 0:02:18]} 17. h4 {[%clk 0:02:24]} 17... h6 {[%clk 0:02:17.6]} 18. g3
{[%clk 0:02:15.2]} 18... e5 {[%clk 0:02:12.5]} 19. Bf1 {[%clk 0:02:11.5]} 19...
Rf8 {[%clk 0:02:07.9]} 20. Bg2 {[%clk 0:02:09]} 20... Rcd8 {[%clk 0:02:03.7]}
21. b4 {[%clk 0:02:09.1]} 21... f5 {[%clk 0:02:01.3]} 22. Ned2 {[%clk
0:01:59.1]} 22... Rxd3 {[%clk 0:01:36.2]} 23. b5 {[%clk 0:01:50.7]} 23... Na5
{[%clk 0:01:31]} 24. Nxe5 {[%clk 0:01:50.6]} 24... Bxg2 {[%clk 0:01:26.6]} 25.
Nxd3 {[%clk 0:01:50.4]} 25... Ba8 {[%clk 0:01:25.8]} 26. Nf4 {[%clk 0:01:48.1]}
26... Kh7 {[%clk 0:01:19.8]} 27. Kh2 {[%clk 0:01:31.3]} 27... g5 {[%clk
0:01:10.7]} 28. Ng2 {[%clk 0:01:31.4]} 28... Nd5 {[%clk 0:01:06.4]} 29. Nc4
{[%clk 0:01:26.8]} 29... Nf6 {[%clk 0:01:05.4]} 30. Nxa5 {[%clk 0:01:23]} 30...
Ng4+ {[%clk 0:00:56.9]} 31. Kg1 {[%clk 0:01:22.3]} 31... bxa5 {[%clk 0:00:52.7]}
32. b6 {[%clk 0:00:42.4]} 32... axb6 {[%clk 0:00:47.4]} 33. Qxb6 {[%clk
0:00:43.3]} 33... Ne5 {[%clk 0:00:29.5]} 34. Qxc5 {[%clk 0:00:39.4]} 34... Qb7
{[%clk 0:00:23.3]} 35. Qc7+ {[%clk 0:00:38.4]} 35... Qxc7 {[%clk 0:00:23.5]} 36.
Rxc7+ {[%clk 0:00:38]} 36... Kg6 {[%clk 0:00:24.4]} 37. Ne1 {[%clk 0:00:34.2]}
37... Rb8 {[%clk 0:00:23]} 38. Rc5 {[%clk 0:00:32.2]} 38... Ng4 {[%clk 0:00:22]}
39. Rxa5 {[%clk 0:00:30.6]} 39... Rb2 {[%clk 0:00:21]} 40. Rxa8 {[%clk
0:00:30.2]} 40... Nxf2 {[%clk 0:00:20.7]} 41. Nd3 {[%clk 0:00:25.3]} 41... Nh3+
{[%clk 0:00:20.6]} 42. Kh1 {[%clk 0:00:24.7]} 42... Re2 {[%clk 0:00:20.2]} 43.
Re8 {[%clk 0:00:21.7]} 43... Kh5 {[%clk 0:00:19.5]} 44. Rg1 {[%clk 0:00:13.4]}
44... Kg4 {[%clk 0:00:18.7]} 45. Rg2 {[%clk 0:00:13.4]} 45... Rxg2 {[%clk
0:00:13.5]} 46. Kxg2 {[%clk 0:00:13.6]} 46... gxh4 {[%clk 0:00:14.4]} 47. Nf2+
{[%clk 0:00:12.3]} 47... Nxf2 {[%clk 0:00:14.2]} 48. Kxf2 {[%clk 0:00:13.2]}
48... hxg3+ {[%clk 0:00:14.3]} 49. Kg2 {[%clk 0:00:13.6]} 49... h5 {[%clk
0:00:15.2]} 50. Rg8+ {[%clk 0:00:14]} 50... Kh4 {[%clk 0:00:15.4]} 51. Rxg3
{[%clk 0:00:12.5]} 51... f4 {[%clk 0:00:16.3]} 52. a4 {[%clk 0:00:10.6]} 52...
fxg3 {[%clk 0:00:15.2]} 53. a5 {[%clk 0:00:11.1]} 53... Kg4 {[%clk 0:00:15.1]}
54. a6 {[%clk 0:00:11.7]} 54... h4 {[%clk 0:00:12]} 55. a7 {[%clk 0:00:12.2]}
55... h3+ {[%clk 0:00:12]} 56. Kg1 {[%clk 0:00:12.2]} 56... Kf3 {[%clk
0:00:06.3]} 57. a8=Q+ {[%clk 0:00:12.3]} 57... Kxe3 {[%clk 0:00:07.2]} 58. Qa3+
{[%clk 0:00:12.1]} 58... Kf4 {[%clk 0:00:06.8]} 59. Qd6+ {[%clk 0:00:12.2]}
59... Kg4 {[%clk 0:00:06.7]} 60. Qe6+ {[%clk 0:00:12.4]} 60... Kh4 {[%clk
0:00:06.3]} 61. Qe4+ {[%clk 0:00:11.6]} 61... Kg5 {[%clk 0:00:06.2]} 62. Qf3
{[%clk 0:00:11.9]} 1-0

[Event "*** Titled Tuesday Blitz"]
[Site "Chess.com"]
[Date "2021.02.02"]
[Round "11"]
[White "Beca95"]
[Black "SergeiAza"]
[Result "1-0"]
[WhiteElo "2909"]
[BlackElo "2784"]
[TimeControl "180+1"]
[EndTime "12:07:55 PST"]
[Termination "Beca95 won by resignation"]

1. d4 {[%clk 0:03:00.9]} 1... f5 {[%clk 0:02:59.4]} 2. Bg5 {[%clk 0:02:59]} 2...
h6 {[%clk 0:02:59]} 3. Bh4 {[%clk 0:02:58.1]} 3... g5 {[%clk 0:02:58.7]} 4. Bg3
{[%clk 0:02:57.5]} 4... Bg7 {[%clk 0:02:58.4]} 5. e3 {[%clk 0:02:53.3]} 5... c5
{[%clk 0:02:58.4]} 6. Nc3 {[%clk 0:02:43.3]} 6... Nf6 {[%clk 0:02:24.3]} 7. Be5
{[%clk 0:02:37.7]} 7... Nc6 {[%clk 0:02:13.5]} 8. Bxf6 {[%clk 0:02:36.3]} 8...
Bxf6 {[%clk 0:02:13.8]} 9. Qh5+ {[%clk 0:02:32.3]} 9... Kf8 {[%clk 0:02:13.9]}
10. dxc5 {[%clk 0:02:19.1]} 10... Qa5 {[%clk 0:01:58.3]} 11. Ne2 {[%clk
0:02:18.2]} 11... Qxc5 {[%clk 0:01:57.6]} 12. g4 {[%clk 0:02:08.4]} 12... d5
{[%clk 0:01:12.7]} 13. Bg2 {[%clk 0:02:03.5]} 13... d4 {[%clk 0:00:48.2]} 14.
exd4 {[%clk 0:02:00.1]} 14... Nxd4 {[%clk 0:00:48.4]} 15. Nxd4 {[%clk
0:01:59.3]} 15... Qxd4 {[%clk 0:00:45.5]} 16. gxf5 {[%clk 0:01:54.1]} 16... Qe5+
{[%clk 0:00:41.6]} 17. Ne4 {[%clk 0:01:38.6]} 17... Bxf5 {[%clk 0:00:38.3]} 18.
O-O {[%clk 0:01:38.7]} 18... Kg7 {[%clk 0:00:32.1]} 19. Rfe1 {[%clk 0:01:34]}
19... Bg6 {[%clk 0:00:31.3]} 20. Qf3 {[%clk 0:01:29.8]} 20... Rhf8 {[%clk
0:00:28.5]} 21. c3 {[%clk 0:01:28.7]} 21... Rad8 {[%clk 0:00:26.5]} 22. Rad1
{[%clk 0:01:12]} 22... Bxe4 {[%clk 0:00:25.7]} 23. Qxe4 {[%clk 0:01:11.6]} 23...
Qxe4 {[%clk 0:00:24.7]} 24. Bxe4 {[%clk 0:01:12.5]} 24... b6 {[%clk 0:00:24.1]}
25. Kg2 {[%clk 0:01:11.5]} 25... h5 {[%clk 0:00:24]} 26. h3 {[%clk 0:01:10.1]}
26... Be5 {[%clk 0:00:20.6]} 27. Bf3 {[%clk 0:01:10.2]} 27... Kf6 {[%clk
0:00:20.1]} 28. Bxh5 {[%clk 0:01:09.2]} 28... Rd6 {[%clk 0:00:20.2]} 29. Rxd6+
{[%clk 0:01:08.7]} 29... exd6 {[%clk 0:00:19.5]} 30. Bf3 {[%clk 0:01:06.6]}
30... b5 {[%clk 0:00:19.5]} 31. a3 {[%clk 0:01:06.4]} 31... a5 {[%clk
0:00:19.5]} 32. Re4 {[%clk 0:00:53.3]} 32... Rb8 {[%clk 0:00:19]} 33. Be2 {[%clk
0:00:50.9]} 33... d5 {[%clk 0:00:16.3]} 34. Rg4 {[%clk 0:00:49.7]} 34... b4
{[%clk 0:00:14.4]} 35. axb4 {[%clk 0:00:49.4]} 35... axb4 {[%clk 0:00:14.9]} 36.
cxb4 {[%clk 0:00:40]} 36... d4 {[%clk 0:00:15.1]} 37. b5 {[%clk 0:00:39.5]}
37... Rc8 {[%clk 0:00:14.5]} 38. Bd3 {[%clk 0:00:34.9]} 38... Rc1 {[%clk
0:00:12.8]} 39. Kf3 {[%clk 0:00:34.7]} 39... Rd1 {[%clk 0:00:12]} 40. Ke2 {[%clk
0:00:34.7]} 40... Rh1 {[%clk 0:00:11.6]} 41. b6 {[%clk 0:00:25.1]} 41... Rxh3
{[%clk 0:00:11.6]} 42. Rg1 {[%clk 0:00:24]} 42... Rh8 {[%clk 0:00:10.1]} 43. Be4
{[%clk 0:00:21.9]} 43... Rc8 {[%clk 0:00:08]} 44. Kd3 {[%clk 0:00:20.5]} 44...
Rc5 {[%clk 0:00:08.1]} 45. b7 {[%clk 0:00:19.9]} 45... Rb5 {[%clk 0:00:08.3]}
46. Rb1 {[%clk 0:00:20]} 46... Rb4 {[%clk 0:00:08.3]} 47. b3 {[%clk 0:00:19.9]}
47... g4 {[%clk 0:00:08.3]} 48. Bd5 {[%clk 0:00:20.1]} 48... Kg5 {[%clk
0:00:07.7]} 49. Re1 {[%clk 0:00:18.4]} 49... Kf6 {[%clk 0:00:07.4]} 50. Rc1
{[%clk 0:00:18.6]} 50... Kg5 {[%clk 0:00:05.6]} 51. Rc8 {[%clk 0:00:18.3]} 51...
Rb6 {[%clk 0:00:05.5]} 52. Re8 {[%clk 0:00:18.4]} 52... Bf4 {[%clk 0:00:05.7]}
53. Kxd4 {[%clk 0:00:18.2]} 53... Kh4 {[%clk 0:00:04.4]} 54. Rf8 {[%clk
0:00:16.3]} 54... Bd6 {[%clk 0:00:03.5]} 55. Rf6 {[%clk 0:00:16.4]} 55... Rb4+
{[%clk 0:00:03.4]} 56. Kc3 {[%clk 0:00:16.7]} 56... Rxb7 {[%clk 0:00:02.2]} 57.
Rxd6 {[%clk 0:00:16.4]} 57... Rc7+ {[%clk 0:00:02.3]} 58. Kd4 {[%clk 0:00:16.7]}
58... Re7 {[%clk 0:00:02.9]} 59. b4 {[%clk 0:00:16.9]} 59... Re2 {[%clk
0:00:02.9]} 60. Rf6 {[%clk 0:00:17.1]} 60... Kg5 {[%clk 0:00:03]} 61. Rf8 {[%clk
0:00:16.8]} 61... Rd2+ {[%clk 0:00:03.7]} 62. Kc5 {[%clk 0:00:17.1]} 62... Rc2+
{[%clk 0:00:04.1]} 63. Bc4 {[%clk 0:00:17.6]} 63... Rd2 {[%clk 0:00:02.8]} 64.
b5 {[%clk 0:00:17.9]} 1-0

[Event "*** Titled Tuesday Blitz"]
[Site "Chess.com"]
[Date "2021.02.02"]
[Round "11"]
[White "GMKrikor"]
[Black "Arvids_Andrejevs"]
[Result "1-0"]
[WhiteElo "2768"]
[BlackElo "2401"]
[TimeControl "180+1"]
[EndTime "12:07:58 PST"]
[Termination "GMKrikor won by resignation"]

1. Nf3 {[%clk 0:03:00.9]} 1... d5 {[%clk 0:02:59.6]} 2. c4 {[%clk 0:03:00.4]}
2... e6 {[%clk 0:02:59.1]} 3. e3 {[%clk 0:02:59.3]} 3... Nf6 {[%clk 0:02:58.8]}
4. Nc3 {[%clk 0:02:59]} 4... c5 {[%clk 0:02:58.3]} 5. cxd5 {[%clk 0:02:59.2]}
5... Nxd5 {[%clk 0:02:54.5]} 6. Nxd5 {[%clk 0:02:59]} 6... Qxd5 {[%clk
0:02:54.5]} 7. b3 {[%clk 0:02:59]} 7... b6 {[%clk 0:02:39.1]} 8. Bb2 {[%clk
0:02:57]} 8... Bb7 {[%clk 0:02:38.4]} 9. Bc4 {[%clk 0:02:57.6]} 9... Qh5 {[%clk
0:02:33.7]} 10. Ne5 {[%clk 0:02:39.6]} 10... Qxd1+ {[%clk 0:02:08.2]} 11. Rxd1
{[%clk 0:02:40.5]} 11... Bd6 {[%clk 0:02:01]} 12. Bb5+ {[%clk 0:02:39.3]} 12...
Ke7 {[%clk 0:01:58.6]} 13. O-O {[%clk 0:02:33]} 13... a6 {[%clk 0:01:52.7]} 14.
Be2 {[%clk 0:02:32.7]} 14... Nc6 {[%clk 0:01:46.1]} 15. Nc4 {[%clk 0:02:30.7]}
15... Bc7 {[%clk 0:01:42.2]} 16. d3 {[%clk 0:02:29.8]} 16... f6 {[%clk
0:01:18.4]} 17. a3 {[%clk 0:02:28.2]} 17... Rhd8 {[%clk 0:01:13.1]} 18. Rc1
{[%clk 0:02:28.3]} 18... Rd7 {[%clk 0:01:04.4]} 19. Rfd1 {[%clk 0:02:24]} 19...
Rad8 {[%clk 0:01:04.2]} 20. f4 {[%clk 0:02:24.1]} 20... b5 {[%clk 0:00:58.9]}
21. Nd2 {[%clk 0:02:23.7]} 21... Bb6 {[%clk 0:00:57.7]} 22. Kf2 {[%clk
0:02:23.6]} 22... Na5 {[%clk 0:00:51.4]} 23. Bc3 {[%clk 0:02:11.7]} 23... Nc6
{[%clk 0:00:38.4]} 24. h3 {[%clk 0:02:05.2]} 24... h6 {[%clk 0:00:31]} 25. Ne4
{[%clk 0:01:49.7]} 25... e5 {[%clk 0:00:23.3]} 26. fxe5 {[%clk 0:01:44.9]} 26...
fxe5 {[%clk 0:00:23.9]} 27. Bb2 {[%clk 0:01:44]} 27... Rf8+ {[%clk 0:00:19.3]}
28. Ke1 {[%clk 0:01:40.1]} 28... Rd5 {[%clk 0:00:18]} 29. Bf3 {[%clk 0:01:32.2]}
29... Rfd8 {[%clk 0:00:18.1]} 30. Nf2 {[%clk 0:01:23.1]} 30... Na5 {[%clk
0:00:14.6]} 31. Bxd5 {[%clk 0:01:20.9]} 31... Bxd5 {[%clk 0:00:15.5]} 32. e4
{[%clk 0:01:00.7]} 32... Bxb3 {[%clk 0:00:15]} 33. Rd2 {[%clk 0:01:01.5]} 33...
c4 {[%clk 0:00:14.6]} 34. Ng4 {[%clk 0:00:57.9]} 34... cxd3 {[%clk 0:00:12.5]}
35. Nxe5 {[%clk 0:00:55.1]} 35... Bd4 {[%clk 0:00:12.5]} 36. Bxd4 {[%clk
0:00:54.3]} 36... Rxd4 {[%clk 0:00:12.7]} 37. Rxd3 {[%clk 0:00:53.4]} 37...
Rxe4+ {[%clk 0:00:12.3]} 38. Kf2 {[%clk 0:00:52.5]} 38... Rxe5 {[%clk
0:00:12.6]} 39. Rc7+ {[%clk 0:00:52.3]} 39... Kf6 {[%clk 0:00:12.7]} 40. Ra7
{[%clk 0:00:43.6]} 40... Re6 {[%clk 0:00:10.9]} 41. Rf3+ {[%clk 0:00:43.8]}
41... Ke5 {[%clk 0:00:10.5]} 42. Re3+ {[%clk 0:00:23.3]} 42... Kf5 {[%clk
0:00:10.8]} 43. g4+ {[%clk 0:00:08.3]} 43... Kf6 {[%clk 0:00:09.4]} 44. Rf3+
{[%clk 0:00:08.3]} 44... Kg6 {[%clk 0:00:09.4]} 45. Rff7 {[%clk 0:00:05.3]}
45... Kg5 {[%clk 0:00:07.6]} 46. Rxg7+ {[%clk 0:00:05.4]} 46... Kh4 {[%clk
0:00:08]} 47. Rh7 {[%clk 0:00:04]} 47... Rf6+ {[%clk 0:00:08.1]} 48. Ke3 {[%clk
0:00:03.5]} 48... Kxh3 {[%clk 0:00:08.1]} 49. g5 {[%clk 0:00:03.7]} 49... Nc4+
{[%clk 0:00:08.5]} 50. Kd4 {[%clk 0:00:03.9]} 50... Rd6+ {[%clk 0:00:08.9]} 51.
Kc5 {[%clk 0:00:04.3]} 51... Rd2 {[%clk 0:00:08.1]} 52. Rxh6+ {[%clk 0:00:04.1]}
52... Kg4 {[%clk 0:00:07.2]} 53. g6 {[%clk 0:00:05]} 53... Rd8 {[%clk
0:00:06.1]} 54. g7 {[%clk 0:00:05.2]} 54... Rc8+ {[%clk 0:00:06.2]} 55. Kb4
{[%clk 0:00:03.8]} 55... Ba2 {[%clk 0:00:06.2]} 56. Rh8 {[%clk 0:00:03.9]} 56...
Nd2 {[%clk 0:00:02.5]} 57. Rxc8 {[%clk 0:00:03.5]} 57... a5+ {[%clk 0:00:02.9]}
58. Kxa5 {[%clk 0:00:03.6]} 58... Kf5 {[%clk 0:00:03.8]} 59. Kb4 {[%clk
0:00:03.8]} 59... Nc4 {[%clk 0:00:04.7]} 60. g8=Q {[%clk 0:00:04.7]} 60... Nxa3
{[%clk 0:00:05.1]} 61. Qf8+ {[%clk 0:00:05]} 1-0